fUSD/lending_fUSD_20251019
["ID","MTS","AMOUNT","RATE_DAILY","PERIOD"]
[391797622,1760839834028,-474.66,0.00028241,2]
[391797623,1760839834039,-1009.0,0.000283,2]
[391797624,1760839834050,-546.8,0.00028356,2]
[391797625,1760839834059,-176.09,0.00028356,2]
[391797626,1760839834069,-827.18,0.00028356,2]
[391797627,1760839834078,-171.69,0.00028356,2]
[391797628,1760839834087,-150.0,0.00028356,2]
[391797629,1760839834100,-176.09,0.00028356,2]
[391797630,1760839834110,-546.8,0.00028356,2]
[391797631,1760839834119,-168.27,0.00028356,2]
[391797632,1760839834129,-168.27,0.00028356,2]
[391797633,1760839834139,-546.8,0.00028356,2]
[391797634,1760839834148,-168.27,0.00028356,2]
[391797635,1760839834158,-837.95727168,0.00028363,2]
[391797636,1760839834167,-413.73,0.00028384,2]
[391797637,1760839834177,-175.6,0.00028384,2]
[391797638,1760839834186,-150.0,0.00028384,2]
[391797639,1760839834196,-413.73,0.00028384,2]
[391797640,1760839834207,-546.8,0.00028384,2]
[391797641,1760839834216,-413.73,0.00028384,2]
[391797642,1760839834225,-168.0,0.00028482,2]
[391797643,1760839834235,-152.0,0.00028606,5]
[391797644,1760839834245,-168.0,0.0002864,2]
[391797645,1760839834254,-1428.0,0.00028652,7]
[391797646,1760839834264,-837.95727171,0.00028752,2]
[391797647,1760839834276,-168.0,0.00028753,2]
[391797648,1760839834286,-200.0,0.00028768,2]
[391797649,1760839834296,-1077.34,0.000288,2]
[391797650,1760839834306,-1000.0,0.000288,2]
[391797651,1760839834316,-1000.0,0.000288,2]
[391797652,1760839834327,-1000.0,0.000288,2]
[391797653,1760839834336,-1000.0,0.000288,2]
[391797654,1760839834346,-168.54352944,0.0002889,2]
[391797655,1760839834356,-1974.8791845,0.000289,2]
[391797656,1760839834365,-153.85298059,0.000289,2]
[391797657,1760839834375,-535.13275123,0.00028973,3]
[391797658,1760839834385,-508.02003638,0.00028973,5]
[391797659,1760839834394,-500.81620499,0.00028973,5]
[391797660,1760839834403,-500.0,0.00028973,5]
[391797661,1760839834413,-500.0,0.00028973,5]
[391797662,1760839834422,-500.0,0.00028973,5]
[391797663,1760839834432,-500.0,0.00028973,5]
[391797664,1760839834443,-162.9,0.0002898,2]
[391797665,1760839834456,-1255.5033383,0.00028981,2]
[391797666,1760839834465,-90092.9325814,0.00028981,2]
[391797667,1760839834474,-150.0,0.00028982,2]
[391797668,1760839834484,-150.0,0.00028982,2]
[391797669,1760839834495,-155.69509048,0.00028982,2]
[391797670,1760839834504,-191.03641894,0.00028982,2]
[391797671,1760839834514,-154.1290671,0.00028982,2]
[391797672,1760839834523,-441.22108623,0.00028989,2]
[391797673,1760839834535,-475.82771539,0.0002899,3]
[391797674,1760839834544,-168070.053831,0.0002899,3]
[391797675,1760839834553,-29185.2631281,0.0002899,3]
[391797676,1760839834563,-19189.3498829,0.00029,2]
[391797677,1760839834575,-1000.0,0.00029,2]
[391797678,1760839834587,-366484.24050404,0.00029,2]
[391797679,1760839834596,-575.66506,0.00029,2]
[391797680,1760839834606,-1665.8,0.00029009,2]
[391797681,1760839834615,-207.4,0.00029031,2]
[391797682,1760839834624,-150.0,0.00029037,2]
[391797683,1760839834633,-150.0,0.00029037,2]
[391797684,1760839834642,-168.0,0.00029085,2]
[391797685,1760839834652,-204.02825304,0.00029092,2]
[391797686,1760839834661,-199.99999984,0.00029092,2]
[391797687,1760839834670,-439.92,0.00029123,2]
[391797688,1760839834679,-10504.3783644,0.00029158,3]
[391797689,1760839834688,-9728.42104269,0.00029158,3]
[391797690,1760839834699,-413.73,0.00029178,2]
[391797691,1760839834708,-413.73,0.00029178,2]
[391797692,1760839834719,-1091.0,0.0002919,5]
[391797693,1760839834728,-546.8,0.00029205,2]
[391797694,1760839834737,-165.54,0.00029205,2]
[391797695,1760839834746,-168.0,0.00029282,2]
[391797696,1760839834756,-1974.87918441,0.00029296,2]
[391797697,1760839834765,-168.0,0.00029448,2]
[391797698,1760839834775,-10504.3783644,0.00029491,3]
[391797699,1760839834787,-9728.42104269,0.00029491,3]
[391797700,1760839834796,-1000.0,0.00029504,2]
[391797701,1760839834806,-1000.0,0.00029521,5]
[391797702,1760839834815,-501.6319003,0.00029521,5]
[391797703,1760839834824,-514.35628776,0.00029521,5]
[391797704,1760839834834,-506.27347097,0.00029521,5]
[391797705,1760839834843,-152.0,0.0002957,6]
[391797706,1760839834852,-10504.3783644,0.00029672,3]
[391797707,1760839834862,-9728.42104269,0.00029672,3]
[391797708,1760839834872,-1974.87918441,0.00029692,2]
[391797709,1760839834881,-161.91720858,0.0002976,2]
[391797710,1760839834892,-168.5435294,0.00029784,2]
[391797711,1760839834903,-1000.0,0.000298,30]
[391797712,1760839834913,-300.0,0.000299,10]
[391797713,1760839834923,-233.22851482,0.0002999,2]
[391797714,1760839834933,-1048.0,0.0003,30]
[391797715,1760839834944,-342.7026738,0.0003,7]
[391797716,1760839834954,-1014.38924133,0.00030068,5]
[391797717,1760839834964,-1974.87918441,0.00030088,2]
[391797718,1760839834974,-153.85298056,0.00030088,15]
[391797719,1760839834983,-9728.42104269,0.00030089,3]
[391797720,1760839834992,-10504.3783644,0.000301,3]
[391797721,1760839835001,-10504.3783644,0.00030106,3]
[391797722,1760839835010,-19456.8420854,0.00030106,3]
[391797723,1760839835020,-176.09,0.0003011,2]
[391797724,1760839835029,-336.29,0.0003011,2]
[391797725,1760839835038,-301.23,0.0003011,2]
[391797726,1760839835047,-1092.92,0.0003011,2]
[391797727,1760839835056,-301.48,0.0003011,2]
[391797728,1760839835064,-768.62,0.0003011,2]
[391797729,1760839835074,-176.09,0.0003011,2]
[391797730,1760839835083,-176.09,0.0003011,2]
[391797731,1760839835092,-175.85,0.0003011,2]
[391797732,1760839835102,-21008.7567289,0.00030116,3]
[391797733,1760839835113,-9728.42104269,0.00030116,3]
[391797734,1760839835123,-21008.7567289,0.00030126,3]
[391797735,1760839835133,-29185.2631281,0.00030126,3]
[391797736,1760839835144,-2858.0,0.00030136,5]
[391797737,1760839835153,-194.12869528,0.00030136,2]
[391797738,1760839835163,-501.52939829,0.00030136,2]
[391797739,1760839835172,-500.0,0.00030136,8]
[391797740,1760839835181,-500.0,0.00030136,8]
[391797741,1760839835191,-500.0,0.00030136,8]
[391797742,1760839835200,-500.0,0.00030136,8]
[391797743,1760839835209,-500.0,0.00030136,8]
[391797744,1760839835219,-271.12447077,0.00030136,8]
[391797745,1760839835228,-500.0,0.00030136,8]
[391797746,1760839835237,-500.0,0.00030136,8]
[391797747,1760839835247,-500.0,0.00030136,8]
[391797748,1760839835255,-500.0,0.00030136,8]
[391797749,1760839835264,-500.0,0.00030136,8]
[391797750,1760839835273,-500.0,0.00030136,8]
[391797751,1760839835285,-500.0,0.00030136,8]
[391797752,1760839835295,-500.0,0.00030136,8]
[391797753,1760839835304,-743.12,0.00030136,8]
[391797754,1760839835314,-743.12,0.00030136,8]
[391797755,1760839835323,-743.12,0.00030136,8]
[391797756,1760839835332,-158.82310365,0.00030136,8]
[391797757,1760839835342,-387.2626508,0.00030136,8]
[391797758,1760839835351,-939.11,0.00030136,2]
[391797759,1760839835360,-939.11,0.00030136,2]
[391797760,1760839835370,-939.11,0.00030136,2]
[391797761,1760839835379,-167.29513859,0.00030136,120]
[391797762,1760839835388,-500.0,0.00030136,8]
[391797763,1760839835397,-500.0,0.00030136,8]
[391797764,1760839835407,-500.0,0.00030136,8]
[391797765,1760839835416,-500.0,0.00030136,2]
[391797766,1760839835426,-500.0,0.00030136,2]
[391797767,1760839835435,-500.0,0.00030136,2]
[391797768,1760839835446,-500.0,0.00030136,8]
[391797769,1760839835463,-391.22060395,0.00030136,8]
[391797770,1760839835472,-450.74089764,0.00030136,8]
[391797771,1760839835481,-500.0,0.00030136,8]
[391797772,1760839835491,-531.53111068,0.00030136,8]
[391797773,1760839835500,-300.0,0.00030136,2]
[391797774,1760839835509,-300.0,0.00030136,2]
[391797775,1760839835519,-300.0,0.00030136,2]
[391797776,1760839835528,-518.03006466,0.00030136,8]
[391797777,1760839835537,-265.38720804,0.00030136,8]
[391797778,1760839835546,-429.18465221,0.00030136,8]
[391797779,1760839835556,-263.69980099,0.00030136,8]
[391797780,1760839835566,-500.0,0.00030136,8]
[391797781,1760839835575,-500.0,0.00030136,8]
[391797782,1760839835586,-500.0,0.00030136,8]
[391797783,1760839835595,-178.72185056,0.00030136,8]
[391797784,1760839835605,-159.22923048,0.00030136,8]
[391797785,1760839835614,-292.58023267,0.00030136,8]
[391797786,1760839835623,-500.0,0.00030136,8]
[391797787,1760839835634,-634.81138962,0.00030136,8]
[391797788,1760839835643,-209.23512997,0.00030136,8]
[391797789,1760839835652,-217.82008226,0.00030136,8]
[391797790,1760839835662,-288.50298799,0.00030136,8]
[391797791,1760839835671,-268.53425924,0.00030136,8]
[391797792,1760839835681,-257.93269464,0.00030136,8]
[391797793,1760839835691,-213.39629196,0.00030136,8]
[391797794,1760839835700,-256.43333099,0.00030136,8]
[391797795,1760839835709,-513.35990812,0.00030136,8]
[391797796,1760839835719,-500.0,0.00030136,8]
[391797797,1760839835729,-410.76446575,0.00030136,8]
[391797798,1760839835739,-550.64906034,0.00030136,8]
[391797799,1760839835750,-500.0,0.00030136,8]
[391797800,1760839835761,-518.8173067,0.00030136,8]
[391797801,1760839835771,-197.77440394,0.00030136,8]
[391797802,1760839835781,-178.39785425,0.00030136,8]
[391797803,1760839835792,-1728.87,0.00030136,8]
[391797804,1760839835802,-1728.87,0.00030136,8]
[391797805,1760839835812,-1728.87,0.00030136,8]
[391797806,1760839835823,-172.48460134,0.00030136,8]
[391797807,1760839835832,-268.57197538,0.00030136,8]
[391797808,1760839835842,-268.72966856,0.00030136,8]
[391797809,1760839835854,-500.0,0.00030136,8]
[391797810,1760839835864,-500.0,0.00030136,8]
[391797811,1760839835874,-547.73269916,0.00030136,8]
[391797812,1760839835884,-500.0,0.00030136,8]
[391797813,1760839835893,-500.0,0.00030136,8]
[391797814,1760839835902,-242.72544413,0.00030136,8]
[391797815,1760839835911,-182.27174885,0.00030136,8]
[391797816,1760839835921,-503.39403316,0.00030136,8]
[391797817,1760839835930,-460.13095723,0.00030136,8]
[391797818,1760839835939,-527.48996149,0.00030136,8]
[391797819,1760839835948,-175.07199645,0.00030136,8]
[391797820,1760839835957,-207.42585227,0.00030136,8]
[391797821,1760839835966,-155.75243787,0.00030136,8]
[391797822,1760839835976,-170.85310952,0.00030136,8]
[391797823,1760839835985,-1621.77,0.00030136,8]
[391797824,1760839835995,-1621.77,0.00030136,8]
[391797825,1760839836005,-1621.77,0.00030136,8]
[391797826,1760839836015,-264.47527352,0.00030136,8]
[391797827,1760839836024,-547.30913592,0.00030136,8]
[391797828,1760839836034,-181.60651676,0.00030136,8]
[391797829,1760839836044,-242.6913134,0.00030136,8]
[391797830,1760839836054,-519.17504282,0.00030136,8]
[391797831,1760839836063,-576.84661727,0.00030136,8]
[391797832,1760839836073,-582.75608257,0.00030136,8]
[391797833,1760839836083,-625.00855336,0.00030136,8]
[391797834,1760839836092,-209.90135621,0.00030136,8]
[391797835,1760839836102,-211.20343014,0.00030136,8]
[391797836,1760839836111,-512.79957316,0.00030136,8]
[391797837,1760839836121,-500.0,0.00030136,8]
[391797838,1760839836131,-500.0,0.00030136,8]
[391797839,1760839836141,-500.0,0.00030136,8]
[391797840,1760839836151,-503.10985282,0.00030136,8]
[391797841,1760839836159,-439.26836714,0.00030136,8]
[391797842,1760839836169,-268.41959484,0.00030136,8]
[391797843,1760839836178,-234.87541206,0.00030136,8]
[391797844,1760839836187,-158.97757219,0.00030136,8]
[391797845,1760839836196,-199.67949859,0.00030136,8]
[391797846,1760839836206,-194.77887317,0.00030136,8]
[391797847,1760839836215,-500.0,0.00030136,8]
[391797848,1760839836227,-228.17702149,0.00030136,8]
[391797849,1760839836236,-507.02085166,0.00030173,5]
[391797850,1760839836246,-465.0,0.00030271,2]
[391797851,1760839836255,-10504.3783644,0.00030454,3]
[391797852,1760839836265,-9728.42104269,0.00030454,3]
[391797853,1760839836275,-1974.87918441,0.00030484,2]
[391797854,1760839836284,-152.0,0.00030534,7]
[391797855,1760839836294,-2547.0,0.00030576,2]
[391797856,1760839836303,-926.41,0.00030631,120]
[391797857,1760839836313,-1091.0,0.00030649,5]
[391797858,1760839836323,-168.5435294,0.00030678,2]
[391797859,1760839836332,-349.22,0.00030685,30]
[391797860,1760839836342,-199.0,0.00030712,2]
[391797861,1760839836351,-199.0,0.00030767,2]
[391797862,1760839836361,-199.0,0.00030778,2]
[391797863,1760839836370,-199.0,0.00030799,2]
[391797864,1760839836380,-199.0,0.00030812,2]
[391797865,1760839836390,-9728.42104269,0.00030863,3]
[391797866,1760839836399,-199.0,0.00030867,2]
[391797867,1760839836408,-1974.87918441,0.00030881,2]
[391797868,1760839836418,-256.776307,0.00030884,2]
[391797869,1760839836427,-5000.0,0.00031,120]
[391797870,1760839836437,-1048.0,0.00031,30]
[391797871,1760839836447,-154.0,0.00031,120]
[391797872,1760839836460,-156.0,0.00031,120]
[391797873,1760839836469,-575.66507,0.00031,2]
[391797874,1760839836479,-9728.42104269,0.00031246,3]
[391797875,1760839836488,-939.11,0.00031266,2]
[391797876,1760839836499,-500.0,0.00031266,8]
[391797877,1760839836509,-397.59389311,0.00031266,2]
[391797878,1760839836518,-300.0,0.00031266,2]
[391797879,1760839836529,-1974.87918441,0.00031277,2]
[391797880,1760839836538,-153.85298056,0.00031277,15]
[391797881,1760839836547,-192.29940937,0.00031362,7]
[391797882,1760839836557,-152.0,0.00031498,8]
[391797883,1760839836567,-168.5435294,0.00031571,2]
[391797884,1760839836576,-695.17,0.00031616,2]
[391797885,1760839836585,-1050.91,0.00031616,2]
[391797886,1760839836595,-474.98,0.00031616,2]
[391797887,1760839836604,-695.55,0.00031616,2]
[391797888,1760839836613,-474.98,0.00031616,2]
[391797889,1760839836623,-695.55,0.00031616,2]
[391797890,1760839836633,-474.98,0.00031616,2]
[391797891,1760839836642,-695.55,0.00031616,2]
[391797892,1760839836651,-474.98,0.00031616,2]
[391797893,1760839836661,-695.55,0.00031616,2]
[391797894,1760839836671,-171.53,0.00031616,2]
[391797895,1760839836682,-474.98,0.00031616,2]
[391797896,1760839836692,-9728.42104269,0.00031653,3]
[391797897,1760839836702,-1728.87,0.00031662,8]
[391797898,1760839836713,-202.98466151,0.00031662,8]
[391797899,1760839836724,-1974.87918441,0.00031673,2]
[391797900,1760839836734,-441.0,0.00031674,2]
[391797901,1760839836744,-150.0,0.00031753,2]
[391797902,1760839836755,-150.0,0.00031753,2]
[391797903,1760839836765,-150.0,0.00031753,2]
[391797904,1760839836775,-203.01846989,0.0003177,2]
[391797905,1760839836784,-220.59982626,0.00031778,2]
[391797906,1760839836793,-1008.12,0.000318,60]
[391797907,1760839836802,-700.0,0.000318,11]
[391797908,1760839836812,-500.0,0.0003183,8]
[391797909,1760839836822,-1621.77,0.0003183,8]
[391797910,1760839836831,-450.0,0.00031831,7]
[391797911,1760839836840,-1982.09858083,0.00031833,4]
[391797912,1760839836850,-234.99595558,0.00031855,30]
[391797913,1760839836861,-19456.8420854,0.00031858,3]
[391797914,1760839836871,-163.70051504,0.00031858,2]
[391797915,1760839836880,-151.07,0.00031858,2]
[391797916,1760839836890,-9728.42104269,0.00031866,3]
[391797917,1760839836900,-29185.2631281,0.00031868,3]
[391797918,1760839836909,-743.12,0.00031876,8]
[391797919,1760839836918,-255.86391676,0.00031876,8]
[391797920,1760839836927,-156.75,0.00031888,2]
[391797921,1760839836936,-87555.7893842,0.00031888,3]
[391797922,1760839836946,-220.59982626,0.00031893,2]
[391797923,1760839836955,-500.0,0.00031897,8]
[391797924,1760839836964,-743.12,0.00031897,8]
[391797925,1760839836974,-939.11,0.00031897,2]
[391797926,1760839836983,-500.0,0.00031897,8]
[391797927,1760839836992,-300.0,0.00031897,2]
[391797928,1760839837003,-999.0,0.00031897,120]
[391797929,1760839837012,-353.1998005,0.00031897,8]
[391797930,1760839837022,-1728.87,0.00031897,8]
[391797931,1760839837032,-1621.77,0.00031897,8]
[391797932,1760839837041,-99789.92240498,0.00031898,26]
[391797933,1760839837056,-1283.79029395,0.00031898,26]
[391797934,1760839837852,-1946.35133992,0.00026192,2]
[391797935,1760839837863,-2592.62464301,0.00028882,2]
[391797936,1760839837874,-44032.47237424,0.00031898,26]
[391797986,1760839840079,-29814.73221675,0.00031898,26]
[391797987,1760839840089,-1100.0,0.000319,11]
[391797988,1760839840099,-1048.0,0.00032,30]
[391797989,1760839840108,-9182.88916068,0.00032,7]
[391797990,1760839840118,-160.0,0.00032,120]
[391797991,1760839840127,-160.0,0.00032,120]
[391797992,1760839840136,-161.13,0.00032,10]
[391797993,1760839840149,-220.59982626,0.00032007,2]
[391797994,1760839840159,-1204.601407,0.00032013,2]
[391797995,1760839840168,-442.0,0.00032031,2]
[391797996,1760839840177,-1974.87918441,0.00032069,2]
[391797997,1760839840187,-548.9491,0.00032081,3]
[391797998,1760839840196,-199.0,0.00032085,2]
[391797999,1760839840206,-220.59982626,0.00032122,2]
[391798000,1760839840216,-939.11,0.00032181,2]
[391798001,1760839840226,-564.49990822,0.00032181,8]
[391798002,1760839840236,-300.0,0.00032181,2]
[391798003,1760839840245,-1051.41847326,0.00032181,5]
[391798004,1760839840256,-1008.46648966,0.00032181,5]
[391798005,1760839840267,-1100.20506997,0.00032181,5]
[391798006,1760839840279,-1026.76287586,0.00032181,5]
[391798007,1760839840289,-1075.24443073,0.00032181,5]
[391798008,1760839840300,-1039.3996742,0.00032181,5]
[391798009,1760839840310,-1025.8348298,0.00032181,5]
[391798010,1760839840319,-1047.43611252,0.00032181,5]
[391798011,1760839840329,-1032.85783933,0.00032181,5]
[391798012,1760839840338,-1090.3449926,0.00032181,5]
[391798013,1760839840347,-1072.41591278,0.00032181,5]
[391798014,1760839840356,-1087.00443392,0.00032181,5]
[391798015,1760839840366,-1047.52014776,0.00032181,5]
[391798016,1760839840375,-1113.33943965,0.00032181,5]
[391798017,1760839840385,-1143.09972694,0.00032181,5]
[391798018,1760839840394,-1112.13296935,0.00032181,5]
[391798019,1760839840404,-1125.11604372,0.00032181,5]
[391798020,1760839840414,-1090.11330704,0.00032181,5]
[391798021,1760839840424,-1142.71880422,0.00032181,5]
[391798022,1760839840433,-1130.46440516,0.00032181,5]
[391798023,1760839840443,-1042.87253509,0.00032181,5]
[391798024,1760839840455,-1445.95335158,0.00032181,5]
[391798026,1760839840465,-1091.0,0.00032182,5]
[391798027,1760839840474,-997.63144726,0.00032194,5]
[391798028,1760839840484,-220.59982626,0.00032236,2]
[391798029,1760839840493,-150.0,0.00032237,120]
[391798030,1760839840503,-160.5894461,0.0003227,4]
[391798031,1760839840513,-200.515154,0.000323,6]
[391798032,1760839840522,-798.33567365,0.000323,2]
[391798033,1760839840532,-220.59982626,0.00032351,2]
[391798034,1760839840543,-743.12,0.00032355,8]
[391798035,1760839840551,-6619.53732195,0.00032356,2]
[391798036,1760839840564,-448.14729079,0.00032356,2]
[391798038,1760839843073,-2592.62464294,0.0002928,2]
[391798039,1760839843083,-22993.31538726,0.00032356,2]
[391798040,1760839843093,-1030.48370088,0.00032359,2]
[391798041,1760839843104,-1001.98659933,0.0003237,2]
[391798042,1760839843114,-798.33567365,0.00032383,2]
[391798043,1760839843123,-500.0,0.00032399,8]
[391798044,1760839843133,-500.0,0.00032399,8]
[391798045,1760839843142,-576.51970872,0.00032399,8]
[391798046,1760839843151,-743.12,0.00032399,8]
[391798047,1760839843161,-743.12,0.00032399,8]
[391798048,1760839843171,-743.12,0.00032399,8]
[391798049,1760839843180,-743.12,0.00032399,8]
[391798050,1760839843190,-939.11,0.00032399,2]
[391798051,1760839843200,-939.11,0.00032399,2]
[391798052,1760839843210,-939.11,0.00032399,2]
[391798053,1760839843219,-939.11,0.00032399,2]
[391798054,1760839843229,-300.0,0.00032399,2]
[391798055,1760839843238,-300.0,0.00032399,2]
[391798056,1760839843248,-300.0,0.00032399,2]
[391798057,1760839843257,-300.0,0.00032399,2]
[391798058,1760839843268,-1728.87,0.00032399,8]
[391798059,1760839843279,-1728.87,0.00032399,8]
[391798060,1760839843290,-1728.87,0.00032399,8]
[391798061,1760839843299,-1728.87,0.00032399,8]
[391798062,1760839843309,-1621.77,0.00032399,8]
[391798063,1760839843320,-1621.77,0.00032399,8]
[391798064,1760839843329,-1621.77,0.00032399,8]
[391798065,1760839843339,-1621.77,0.00032399,8]
[391798066,1760839843349,-116254.14050602,0.000324,18]
[391798067,1760839843358,-798315.74790047,0.000324,4]
[391798068,1760839843369,-40941.89214168,0.000324,4]
[391798069,1760839843379,-5175.48,0.000324,7]
[391798070,1760839843389,-7956.51,0.000324,2]
[391798071,1760839843398,-1201.28,0.000324,2]
[391798072,1760839843408,-180.43,0.000324,30]
[391798073,1760839843418,-971.851228,0.000324,11]
[391798074,1760839843427,-1500.0,0.000324,11]
[391798075,1760839843437,-151.85110383,0.00032452,2]
[391798076,1760839843447,-252.882,0.00032457,7]
[391798077,1760839843460,-152.0,0.00032462,9]
[391798078,1760839843470,-220.59982626,0.00032465,2]
[391798079,1760839843480,-1974.87918441,0.00032465,2]
[391798080,1760839843490,-153.85298056,0.00032465,15]
[391798081,1760839843500,-5762.42533036,0.00032465,2]
[391798082,1760839843510,-798.33567365,0.00032465,2]
[391798083,1760839843520,-1705.20558952,0.00032465,2]
[391798084,1760839843530,-374.90376636,0.00032465,2]
[391798085,1760839843539,-168.5435294,0.00032465,2]
[391798086,1760839843549,-7345.63540578,0.00032465,2]
[391798087,1760839843558,-648.17783477,0.00032465,2]
[391798088,1760839843568,-1000.0,0.0003247,2]
[391798089,1760839843578,-1000.0,0.00032473,5]
[391798090,1760839843587,-441.0,0.00032485,2]
[391798091,1760839843597,-743.12,0.00032499,8]
[391798092,1760839843606,-743.12,0.00032499,8]
[391798093,1760839843616,-743.12,0.00032499,8]
[391798094,1760839843625,-743.12,0.00032499,8]
[391798095,1760839843634,-743.12,0.00032499,8]
[391798096,1760839843642,-743.12,0.00032499,8]
[391798097,1760839843650,-939.11,0.00032499,2]
[391798098,1760839843661,-939.11,0.00032499,2]
[391798099,1760839843673,-939.11,0.00032499,2]
[391798100,1760839843683,-939.11,0.00032499,2]
[391798101,1760839843694,-939.11,0.00032499,2]
[391798102,1760839843704,-939.11,0.00032499,2]
[391798103,1760839843713,-300.0,0.00032499,2]
[391798104,1760839843722,-300.0,0.00032499,2]
[391798105,1760839843731,-186.1699329,0.00032499,2]
[391798106,1760839843744,-1728.87,0.00032499,8]
[391798107,1760839843753,-1728.87,0.00032499,8]
[391798108,1760839843762,-1728.87,0.00032499,8]
[391798109,1760839843771,-1728.87,0.00032499,8]
[391798110,1760839843780,-1728.87,0.00032499,8]
[391798111,1760839843789,-1728.87,0.00032499,8]
[391798112,1760839843798,-1621.77,0.00032499,8]
[391798113,1760839843807,-1621.77,0.00032499,8]
[391798114,1760839843817,-1621.77,0.00032499,8]
[391798115,1760839843826,-1621.77,0.00032499,8]
[391798116,1760839843835,-1621.77,0.00032499,8]
[391798117,1760839843844,-1621.77,0.00032499,8]
[391798118,1760839843854,-565067.28221892,0.000325,4]
[391798120,1760839846254,-2592.62464294,0.00029678,2]
[391798121,1760839846264,-948.21,0.00031616,2]
[391798122,1760839846275,-173819.44880808,0.000325,4]
[391798132,1760840626722,803.38,0.00028101,120]
[391798133,1760840713329,259.15941032,0.00032831,30]
[391798134,1760840723812,153.66155147,0.00032831,120]
[391798135,1760840728718,247.27098947,0.00032831,30]
[391798137,1760840874795,175.83160613,0.00032831,120]
[391798138,1760840876005,339.23965508,0.00015,2]
[391798139,1760840876034,538.83139999,0.00015,2]
[391798143,1760840905831,-220.96382028,0.00014925,2]
[391798144,1760840906115,150.33107028,0.00032835,30]
[391798145,1760840908754,-447.38477188,0.00014925,2]
[391798146,1760840909595,157.64749241,0.00032835,30]
[391798147,1760840910257,-162.4,0.00014925,2]
[391798148,1760840912329,-391.29641691,0.00014925,2]
[391798154,1760840916513,-320.48597722,0.00014925,2]
[391798155,1760840918081,-302.0,0.00014925,2]
[391798156,1760840921255,498.23782538,0.00032835,30]
[391798157,1760840921559,467.5147407,0.00032835,30]
[391798159,1760840923294,428.59495296,0.00032835,30]
[391798160,1760840934442,-164.72,0.00014925,2]
[391798161,1760840936101,-4836.01341768,0.00014925,2]
[391798162,1760840939782,-154.7846,0.00014925,2]
[391798163,1760840942454,-160.32094198,0.00014925,2]
[391798164,1760841006135,1012.74,0.000287,120]
[391798165,1760841009373,-216.270454,0.00014887,2]
[391798166,1760841009400,-42.58086511,0.00014924,2]
[391798167,1760841013366,-176.3696357,0.00014924,2]
[391798184,1760841032005,-81.04949919,0.00014924,2]
[391798185,1760841032014,-571.69,0.00014961,2]
[391798186,1760841032024,-300.0,0.00014962,2]
[391798187,1760841032036,-300.0,0.00014962,2]
[391798188,1760841032052,-548.79568551,0.00014973,2]
[391798189,1760841032065,-500.0,0.00014973,2]
[391798190,1760841032075,-500.0,0.00014973,2]
[391798191,1760841032086,-501.47786,0.00014973,2]
[391798192,1760841032096,-373.37772484,0.00014973,2]
[391798193,1760841032106,-1200.0,0.00014998,2]
[391798194,1760841032115,-300.0,0.00014998,2]
[391798195,1760841032125,-601.34042886,0.00014999,2]
[391798196,1760841032137,-184.78532424,0.00014999,2]
[391798197,1760841032147,-183.20978138,0.00014999,2]
[391798198,1760841032158,-194.13390286,0.00014999,2]
[391798199,1760841032168,-500.0,0.00014999,2]
[391798200,1760841032179,-500.0,0.00014999,2]
[391798201,1760841032189,-395.86955924,0.00014999,2]
[391798202,1760841032200,-150.0,0.00014999,2]
[391798203,1760841032210,-44055.83766892,0.00015,2]
[391798204,1760841032223,-1794.14173564,0.00015,2]
[391798205,1760841032275,1000.0,0.000278,120]
[391798207,1760841032292,-819.78286601,0.00015,2]
[391798208,1760841032305,-1252.0134256,0.00015,2]
[391798209,1760841032320,-2741.16468483,0.00015,2]